bitfinex/quotes_ETHUSD_20260226
["timestamp","ask_amount","ask_price","bid_price","bid_amount"]
[1772134181558,7.31608913,2027.0,2026.7,0.001]
[1772134182597,1.15104335,2026.9,2026.5,0.001]
[1772134182935,1.15104335,2026.8,2026.5,0.001]
[1772134183391,7.3152717,2026.7,2026.5,0.001]
[1772134184089,4.93412937,2026.8,2026.5,0.001]
[1772134184090,4.93069601,2026.6,2026.5,0.001]
[1772134184867,1.23339448,2027.0,2026.5,0.001]
[1772134185386,5.66912227,2026.9,2026.5,0.001]
[1772134185603,4.43569601,2026.9,2026.5,0.95028404]
[1772134185790,0.002,2027.1,2026.5,0.95028404]
[1772134185989,4.43769601,2027.1,2026.5,0.95028404]
[1772134187879,4.43769601,2027.1,2026.7,0.9506586]
[1772134189899,0.002,2027.4,2027.0,0.95155513]
[1772134191976,0.002,2027.2,2027.1,2.18569977]
[1772134192209,0.002,2027.4,2027.1,2.18569977]
[1772134192903,0.002,2027.4,2027.2,0.95283659]
[1772134193705,0.002,2027.4,2027.0,0.95283659]
[1772134193891,0.002,2027.4,2026.9,1.23340343]
[1772134194090,1.23510644,2027.4,2026.9,1.23340343]
[1772134194273,1.23510644,2027.4,2027.0,0.95325902]
[1772134194479,0.002,2027.8,2027.0,0.95325902]
[1772134194480,1.17928858,2028.8,2027.2,1.90626027]
[1772134194675,1.17928858,2028.6,2027.7,0.00114106]
[1772134196201,1.23243776,2028.5,2027.7,0.00114106]
[1772134196396,1.17928858,2028.4,2027.7,0.00114106]
[1772134197887,1.17928858,2028.2,2027.7,0.00114106]
[1772134199505,2.41190933,2028.2,2027.7,0.00114106]
[1772134200205,1.23262075,2028.2,2027.4,1.23310644]
[1772134200384,1.18528858,2028.1,2027.4,0.00664669]
[1772134201110,1.17928858,2027.8,2026.9,0.00771082]
[1772134202106,0.006,2027.7,2026.9,0.00771082]
[1772134203819,0.002,2027.6,2027.1,0.01085478]
[1772134204523,0.002,2027.8,2027.3,0.01085478]
[1772134204815,0.002,2028.1,2027.5,0.01186914]
[1772134204997,1.18128858,2028.1,2027.5,0.01186914]
[1772134205399,1.18128858,2028.1,2027.4,1.90626027]
[1772134205813,2.41203019,2028.0,2027.4,1.23305861]
[1772134206023,1.17928858,2027.9,2027.1,0.012874]
[1772134207898,1.17928858,2027.9,2027.3,0.014838]
[1772134208595,2.41401789,2028.1,2027.3,0.014838]
[1772134210495,1.23468665,2028.1,2027.6,0.01770201]
[1772134211238,0.002,2028.1,2027.6,0.01770201]
[1772134212122,1.17928858,2028.0,2027.4,2.61642265]
[1772134212311,1.17928858,2028.0,2027.4,1.23310644]
[1772134212506,1.17928858,2027.9,2027.4,0.01955881]
[1772134212829,2.41401492,2028.1,2027.4,0.01955881]
[1772134213733,1.17928858,2028.0,2027.2,1.25461879]
[1772134214515,1.17928858,2028.0,2027.0,1.254721]
[1772134214516,1.17928858,2027.8,2027.0,1.254721]
[1772134214831,1.17928858,2027.8,2027.1,0.02228012]
[1772134216427,1.17928858,2027.8,2027.1,0.02328012]
[1772134216628,1.2328024,2027.9,2027.3,0.02316894]
[1772134216629,0.002,2027.9,2027.3,0.02316894]
[1772134216833,0.002,2027.9,2027.3,1.38692634]
[1772134217734,1.18128858,2027.9,2027.3,1.38692634]
[1772134217934,1.18128858,2027.9,2027.1,1.2342743]
[1772134218139,1.18128858,2027.9,2027.1,1.25916763]
[1772134218350,1.18128858,2027.9,2027.2,0.02489333]
[1772134218839,1.17928858,2027.7,2027.1,0.001]
[1772134219045,1.17928858,2027.7,2026.9,0.001]
[1772134219336,1.17878858,2027.6,2026.9,0.001]
[1772134220113,1.17878858,2027.6,2026.7,0.001]
[1772134222028,1.17878858,2027.4,2026.7,0.001]
[1772134223031,1.3637574,2027.4,2026.7,0.001]
[1772134223207,1.17878858,2027.3,2026.7,0.001]
[1772134224021,1.23322809,2027.2,2026.7,0.001]
[1772134224229,1.17878858,2027.1,2026.7,0.001]
[1772134225739,1.17828858,2026.9,2026.6,0.001]
[1772134226044,1.17828858,2026.7,2026.6,0.001]
[1772134226216,1.17828858,2026.7,2026.5,0.001]
[1772134226713,1.23347148,2026.8,2026.5,0.001]
[1772134227114,1.17828858,2026.7,2026.5,0.001]
[1772134228123,1.23359321,2026.6,2026.5,0.001]
[1772134228325,2.41187142,2026.7,2026.5,0.001]
[1772134228835,1.17828858,2026.6,2026.5,0.001]
[1772134229142,1.17828858,2027.0,2026.7,0.001]
[1772134230738,1.23341062,2026.9,2026.7,0.001]
[1772134231246,2.4116992,2026.9,2026.7,0.001]
[1772134232231,2.4116992,2026.9,2026.5,0.001]
[1772134232752,1.17828858,2026.8,2026.5,0.001]
[1772134235048,1.23353234,2026.7,2026.5,0.001]
[1772134237038,2.41182092,2026.7,2026.5,0.001]
[1772134237234,2.41182092,2026.7,2026.4,0.001]
[1772134238156,1.17828858,2026.6,2026.4,0.001]
[1772134238335,1.17828858,2026.6,2026.2,0.001]
[1772134238927,1.17778858,2026.4,2026.2,0.001]
[1772134239269,1.17778858,2026.4,2025.8,0.04069014]
[1772134240131,1.17778858,2026.4,2025.6,1.27544841]
[1772134240441,1.17778858,2026.4,2025.7,0.04124622]
[1772134240831,1.17778858,2026.4,2026.0,0.001]
[1772134241027,1.17778858,2026.2,2026.0,0.001]
[1772134241231,1.17778858,2026.2,2025.5,0.04152659]
[1772134241451,1.17778858,2026.2,2025.8,0.001]
[1772134242536,2.66277584,2026.3,2025.8,0.04280777]
[1772134243664,2.66277584,2026.3,2025.8,1.2768788]
[1772134243836,1.429,2026.3,2025.9,0.04236817]
[1772134244161,1.23376764,2026.4,2025.9,0.04236817]
[1772134246157,4.9344907,2026.6,2026.0,0.0429096]
[1772134246534,1.23359321,2026.6,2026.0,0.0429096]
[1772134246744,2.66657833,2026.7,2026.1,0.04317074]
[1772134246939,2.66653736,2026.7,2026.1,0.04317074]
[1772134247748,2.66653736,2026.7,2026.1,1.27705733]
[1772134247950,3.84432594,2026.7,2026.1,1.23388659]
[1772134248135,1.17778858,2026.6,2026.0,0.04342826]
[1772134248449,1.17778858,2026.6,2026.0,1.27738087]
[1772134249035,1.17778858,2026.6,2026.1,0.04368595]
[1772134250079,0.002,2027.2,2026.6,1.13108719]
[1772134250358,1.3657574,2028.1,2026.3,1.88666731]
[1772134250359,1.2329848,2027.6,2026.9,1.13108719]
[1772134250530,2.32719799,2027.6,2026.9,1.13108719]
[1772134250736,1.09421319,2027.5,2026.7,1.13108719]
[1772134251536,1.2329848,2027.6,2027.0,1.13108719]
[1772134252037,1.2329848,2027.6,2027.1,1.23328893]
[1772134252238,0.002,2028.1,2027.5,1.13108719]
[1772134252834,3.92257478,2028.0,2027.5,1.13108719]
[1772134253456,0.002,2028.1,2027.8,1.13108719]
[1772134253959,2.32889986,2028.1,2027.5,1.13108719]
[1772134254146,1.09421319,2028.0,2027.3,1.13108719]
[1772134254464,0.002,2027.6,2027.3,2.36425213]
[1772134256661,0.002,2027.9,2027.4,1.13108719]
[1772134257166,0.002,2027.9,2027.5,1.13108719]
[1772134258003,0.002,2028.1,2027.8,1.13108719]
[1772134258340,0.002,2028.2,2027.8,1.13108719]
[1772134259269,0.002,2028.2,2027.9,2.36388959]
[1772134260853,1.09621319,2028.2,2027.6,1.13108719]
[1772134261170,0.002,2028.2,2027.6,1.13108719]
[1772134262168,0.002,2028.4,2027.7,1.232924]
[1772134262367,0.002,2028.4,2028.0,1.13108719]
[1772134264275,0.002,2028.4,2028.0,2.36377374]
[1772134265179,0.002,2028.4,2028.0,2.3519746]
[1772134265382,0.002,2028.4,2028.0,2.36377374]
[1772134265559,0.002,2028.4,2028.1,1.13108719]
[1772134265875,2.32633006,2029.1,2028.4,1.13108719]
[1772134266065,2.32633006,2029.1,2028.5,2.49484459]
[1772134266252,1.09621319,2029.5,2028.8,1.13108719]
[1772134268277,1.23189119,2029.4,2028.8,2.36329127]
[1772134268647,2.32610438,2029.4,2028.8,1.13108719]
[1772134268874,2.32610438,2029.4,2028.6,2.36341397]
[1772134269552,1.09421319,2029.3,2028.6,2.36341397]
[1772134270380,1.23201261,2029.2,2028.6,2.36341397]
[1772134270682,2.3262111,2029.3,2028.6,2.36341397]
[1772134270884,2.3262111,2029.3,2028.7,1.21353195]
[1772134271348,1.09421319,2029.3,2028.7,1.21353195]
[1772134271653,2.32616872,2029.3,2028.7,1.21353195]
[1772134272361,1.09421319,2029.3,2028.7,1.21353195]
[1772134272545,2.32616885,2029.3,2028.8,1.23225552]
[1772134274496,1.20311392,2029.2,2028.7,1.21353195]
[1772134274653,1.20311392,2029.2,2028.6,1.23235311]
[1772134275356,1.20311392,2029.2,2028.6,2.44588506]
[1772134275676,1.20311392,2029.2,2028.2,2.446152]
[1772134275978,1.20311392,2029.2,2028.3,1.21353195]
[1772134276284,1.23195566,2029.3,2028.3,1.21353195]
[1772134277087,1.23195566,2029.3,2028.4,1.23249852]
[1772134277260,1.23195566,2029.3,2028.5,1.21353195]
[1772134277676,0.002,2029.5,2028.5,1.21353195]
[1772134277677,1.23387444,2029.5,2028.5,1.21353195]
[1772134278360,0.002,2029.7,2028.9,1.21353195]
[1772134279382,0.002,2029.7,2029.1,1.21353195]
[1772134280069,0.002,2029.3,2029.1,1.21353195]
[1772134280275,0.002,2029.7,2029.1,1.21353195]
[1772134280788,0.002,2029.6,2029.1,1.21353195]
[1772134281997,0.002,2029.6,2029.2,1.23201261]
[1772134282193,1.20511392,2029.6,2028.9,1.21353195]
[1772134282367,1.20511392,2029.6,2028.7,2.44584821]
[1772134282567,1.20511392,2029.6,2028.8,1.21353195]
[1772134284095,1.23380741,2029.6,2029.0,1.21353195]
[1772134285563,1.20311392,2029.5,2029.0,1.21353195]
[1772134285769,1.20311392,2029.5,2028.8,2.4457436]
[1772134285992,1.23189119,2029.4,2028.8,2.4457436]
[1772134286773,2.43499526,2029.5,2028.8,2.4457436]
[1772134286972,4.92921592,2029.6,2028.9,1.21353195]
[1772134286973,0.002,2029.6,2028.9,1.21353195]
[1772134287903,0.002,2029.6,2029.0,1.21353195]
[1772134288399,0.002,2029.6,2029.1,2.44560528]
[1772134290104,1.20511392,2029.6,2028.9,1.21353195]
[1772134290596,1.2318305,2029.5,2029.0,1.23213405]
[1772134290793,1.20511392,2029.6,2029.0,1.23213405]
[1772134290982,2.43689091,2029.6,2029.1,1.21353195]
[1772134291383,2.43689091,2029.6,2029.0,1.23213405]
[1772134291588,1.20311392,2029.5,2028.9,2.44569375]
[1772134291989,1.422,2029.4,2028.5,1.21353195]
[1772134292209,1.422,2029.4,2028.6,1.21353195]
[1772134292517,0.002,2029.4,2029.0,1.21353195]
[1772134292994,1.20511392,2029.4,2028.9,1.23219478]
[1772134293191,1.20511392,2029.6,2029.0,1.21353195]
[1772134293796,0.002,2029.6,2029.0,1.21353195]
[1772134295116,0.002,2029.6,2029.1,1.23207333]
[1772134295799,0.002,2029.6,2029.1,2.45480233]
[1772134296882,0.002,2029.6,2029.2,1.222729]
[1772134297200,0.002,2029.6,2029.3,2.4546809]
[1772134297386,2.4682642,2029.9,2029.3,2.4546809]
[1772134297791,2.46825111,2029.9,2029.4,1.222729]
[1772134298119,0.002,2029.9,2029.4,1.222729]
[1772134298890,2.46806529,2030.2,2029.4,1.222729]
[1772134299197,2.46806529,2030.2,2029.5,2.4545595]
[1772134299597,2.46806529,2030.2,2029.6,1.2098501]
[1772134299794,2.46804502,2030.2,2029.6,1.2098501]
[1772134300401,1.14268056,2030.1,2029.6,1.2098501]
[1772134301519,1.14268056,2029.9,2029.2,1.2098501]
[1772134303596,1.14268056,2029.9,2029.4,1.2098501]
[1772134303793,2.3741844,2030.1,2029.4,1.2098501]
[1772134304719,1.23150384,2030.1,2029.4,1.2098501]
[1772134304926,0.002,2029.7,2029.4,1.2098501]
[1772134306435,0.002,2029.7,2029.4,2.44170605]
[1772134306592,1.14268056,2030.0,2029.4,2.44170605]
[1772134306799,1.23149726,2030.1,2029.5,1.2098501]
[1772134307693,1.14268056,2030.0,2029.5,1.2098501]
[1772134307894,1.14268056,2030.0,2029.4,1.23185595]
[1772134308522,1.23158776,2029.9,2029.4,1.23185595]
[1772134308990,0.002,2030.2,2029.5,1.2098501]
[1772134309194,1.23340755,2030.2,2029.5,1.2098501]
[1772134309396,2.37608811,2030.2,2029.5,1.2098501]
[1772134309602,2.37608811,2030.2,2029.6,1.2098501]
[1772134309603,0.002,2030.2,2029.6,1.2098501]
[1772134309815,2.373992,2030.4,2029.7,1.2098501]
[1772134311237,2.373992,2030.4,2029.8,2.44149853]
[1772134311894,1.23328146,2030.5,2029.9,1.2098501]
[1772134312199,1.14268056,2031.0,2030.0,1.2098501]
[1772134312406,1.23086012,2031.1,2030.0,1.2098501]
[1772134312806,1.23086012,2031.1,2030.2,1.2098501]
[1772134314025,1.23086012,2031.1,2030.4,1.2098501]
[1772134315324,2.37354068,2031.1,2030.4,1.2098501]
[1772134316228,2.37354068,2031.1,2030.5,1.23122383]
[1772134316433,0.002,2031.2,2030.6,1.2098501]
[1772134316817,1.23280392,2031.2,2030.6,1.2098501]
[1772134317321,0.002,2030.9,2030.6,1.2098501]
[1772134318333,0.002,2031.1,2030.9,1.2098501]
[1772134319804,0.002,2031.2,2030.9,1.2098501]
[1772134320231,0.002,2031.5,2031.1,1.2098501]
[1772134320426,0.002,2031.5,2031.2,1.2098501]
[1772134320741,1.23039253,2031.9,2031.2,1.2098501]
[1772134321038,1.23039253,2031.9,2031.0,1.2098501]
[1772134321039,1.14468056,2031.7,2031.0,1.2098501]
[1772134322134,0.002,2031.7,2031.0,1.2098501]
[1772134322336,1.14468056,2031.6,2031.0,2.44074265]
[1772134322838,0.002,2031.5,2031.0,2.44074265]
[1772134324414,0.002,2031.5,2031.1,1.2098501]
[1772134324614,6.06654766,2031.8,2031.0,1.23089255]
[1772134324615,0.002,2031.8,2031.2,1.2098501]
[1772134324816,1.23243698,2031.8,2031.2,1.2098501]
[1772134325322,1.14268056,2031.7,2031.0,2.4301428]
[1772134325516,1.23243698,2031.8,2031.1,1.2098501]
[1772134325734,4.92105805,2032.1,2031.0,1.2202927]
[1772134325735,1.23034635,2032.0,2031.2,1.2098501]
[1772134326040,2.37302691,2032.0,2031.2,1.2098501]
[1772134326352,2.37311662,2031.8,2031.2,1.23079952]
[1772134326514,2.37311662,2031.8,2031.1,1.2098501]
[1772134326712,1.14268056,2031.7,2031.1,1.2098501]
[1772134327234,1.23043606,2031.8,2031.2,1.2098501]
[1772134327434,1.14268056,2031.7,2031.2,1.2098501]
[1772134327623,1.14268056,2031.7,2030.8,2.44087124]
[1772134327819,1.14268056,2031.5,2030.6,1.2098501]
[1772134328022,1.14268056,2031.5,2030.4,1.2098501]
[1772134328331,1.14268056,2031.5,2030.4,2.4411286]
[1772134328531,1.14268056,2031.3,2030.4,2.4411286]
[1772134328842,1.14268056,2031.3,2030.5,1.2098501]
[1772134329432,1.14268056,2031.1,2030.2,1.23135611]
[1772134329630,1.16867617,2030.9,2030.3,1.18645559]
[1772134329816,1.16867617,2030.9,2030.1,2.41790065]
[1772134330027,1.16867617,2030.9,2030.1,1.18645559]
[1772134330341,1.16867617,2030.8,2029.9,2.41803435]
[1772134330548,1.16867617,2030.6,2029.9,2.41803435]
[1772134330847,1.16867617,2030.6,2030.3,0.001]
[1772134332119,1.23110257,2030.7,2030.3,0.001]
[1772134332745,1.16867617,2030.7,2030.3,0.001]
[1772134334648,1.16867617,2030.8,2030.3,0.001]
[1772134334851,1.23110257,2030.7,2030.3,0.001]
[1772134335948,1.23107231,2030.8,2030.3,0.001]
[1772134336133,1.23107231,2030.8,2030.3,1.18745559]
[1772134336750,4.92405251,2030.9,2030.3,2.41876728]
[1772134337051,1.16867617,2030.9,2030.4,1.18645559]
[1772134340152,1.23104195,2030.8,2030.4,1.18645559]
[1772134340648,1.23096865,2031.0,2030.5,1.18645559]
[1772134341041,2.39964482,2031.0,2030.5,1.18645559]
[1772134342757,2.64580179,2031.2,2030.6,1.18645559]
[1772134343253,1.16867617,2031.1,2030.3,0.001]
[1772134343752,1.16867617,2031.1,2030.6,0.001]
[1772134344053,0.002,2030.8,2030.6,0.001]
[1772134344736,1.23304195,2030.8,2030.6,0.001]
[1772134346034,0.002,2030.8,2030.6,0.001]
[1772134346253,0.002,2031.0,2030.7,1.18645559]
[1772134347862,0.002,2031.0,2030.7,2.41755726]
[1772134348236,0.002,2031.0,2030.7,1.18645559]
[1772134349461,1.17067617,2031.0,2030.6,0.001]
[1772134351068,1.23098133,2030.9,2030.6,0.001]
[1772134351564,1.16867617,2030.8,2030.6,0.001]
[1772134355175,1.23103011,2030.9,2030.6,0.001]
[1772134356948,1.15759729,2030.8,2030.6,0.001]
[1772134357278,1.23122383,2030.5,2030.3,0.001]
[1772134357852,2.38880417,2030.6,2030.3,0.001]
[1772134358593,1.15759729,2030.5,2030.0,0.001]
[1772134359258,2.38888176,2030.4,2030.0,0.001]
[1772134359480,1.23125941,2030.5,2030.0,1.13094046]
[1772134360791,2.41014554,2030.5,2030.0,1.13094046]
[1772134363652,2.41014554,2030.5,2030.0,1.1222647]
[1772134363886,6.28424524,2030.6,2030.0,1.1222647]
[1772134363887,1.17888613,2030.6,2030.0,1.1222647]
[1772134364183,6.10362684,2030.6,2030.1,1.1212647]
[1772134364369,2.66415183,2030.7,2030.1,1.1212647]
[1772134364881,1.17888613,2030.6,2030.0,0.001]
[1772134366186,2.41010996,2030.5,2030.0,0.001]
[1772134366685,2.41010996,2030.5,2030.0,1.1222647]
[1772134367563,1.23122383,2030.5,2030.0,1.1222647]
[1772134367765,2.41010996,2030.5,2030.0,1.1222647]
[1772134369191,1.23122383,2030.5,2030.0,1.1222647]
[1772134370566,2.41010996,2030.5,2030.0,1.1222647]
[1772134370997,2.41010996,2030.5,2030.2,0.001]
[1772134371195,1.17888613,2030.4,2030.2,0.001]
[1772134371766,1.45091795,2030.4,2030.2,0.001]
[1772134371993,1.45091795,2030.2,2029.7,1.1222647]
[1772134373795,0.27203182,2029.8,2029.7,0.001]
[1772134374101,0.27203182,2029.8,2029.5,1.1222647]
[1772134374701,0.27203182,2029.6,2029.5,0.001]
[1772134374903,1.45091795,2029.8,2029.5,0.001]
[1772134375403,1.17888613,2029.8,2029.5,0.001]
[1772134375908,1.17888613,2029.6,2029.2,0.001]
[1772134377988,2.41071663,2029.5,2029.2,0.001]
[1772134379710,1.17888613,2029.5,2029.2,0.001]
[1772134379910,1.23181019,2029.6,2029.2,0.001]
[1772134380508,2.67581019,2029.6,2029.2,0.001]
[1772134380707,1.23166181,2029.8,2029.2,1.1222647]
[1772134380908,1.23162338,2029.9,2029.2,1.1222647]
[1772134381285,1.444,2030.0,2029.2,1.1222647]
[1772134381696,4.92576094,2030.2,2029.2,1.1222647]
[1772134381697,1.23140577,2030.2,2029.2,1.1222647]
[1772134382010,2.8052445,2030.4,2029.5,1.1212647]
[1772134382011,1.23131274,2030.4,2029.5,1.1212647]
[1772134382209,1.23126546,2030.5,2029.5,1.1212647]
[1772134382383,4.92675168,2030.6,2029.7,1.1212647]
[1772134383310,1.2331632,2030.6,2029.7,1.1212647]
[1772134383700,0.002,2030.6,2029.8,1.1212647]
[1772134384408,1.18088613,2030.6,2029.9,2.35285246]
[1772134384592,0.002,2030.3,2030.0,1.1212647]
[1772134386011,0.002,2030.5,2030.1,1.1212647]
[1772134387899,0.002,2030.5,2030.3,1.1212647]
[1772134388323,0.002,2030.6,2030.3,1.1212647]
[1772134390096,0.002,2030.6,2030.4,2.36010082]
[1772134391724,0.002,2030.6,2030.4,1.12881635]
[1772134392823,0.002,2030.6,2030.4,2.3600975]
[1772134393001,0.002,2030.6,2030.4,1.12881635]
[1772134395508,0.002,2030.6,2030.2,2.36022212]
[1772134395912,0.002,2030.6,2030.3,1.12881635]
[1772134396112,0.002,2030.7,2030.3,1.12881635]
[1772134396653,2.39246059,2031.1,2030.7,1.12881635]
[1772134396654,0.002,2031.1,2030.7,1.12881635]
[1772134397626,0.002,2031.1,2030.8,1.23104195]
[1772134397830,0.002,2031.1,2030.8,2.3598583]
[1772134398201,0.002,2031.1,2030.8,1.12881635]
[1772134399716,1.16156368,2031.1,2030.5,2.36001536]
[1772134399921,1.16156368,2031.1,2030.5,1.12881635]
[1772134401718,1.23092072,2031.0,2030.5,1.12881635]
[1772134402231,2.3904844,2031.0,2030.5,1.12881635]
[1772134402527,1.15956368,2030.9,2030.3,2.36015668]
[1772134402728,1.15956368,2030.9,2030.1,3.50722478]
[1772134403733,1.15956368,2030.7,2030.1,3.50722478]
[1772134404845,1.23104195,2030.8,2030.2,1.12881635]
[1772134405009,2.39060563,2030.8,2030.2,1.12881635]
[1772134406409,2.39060563,2030.8,2030.3,1.23134512]
[1772134406615,2.39060563,2030.8,2030.2,2.36017221]
[1772134406915,2.39060563,2030.8,2030.2,2.36021444]
[1772134407136,2.39060563,2030.8,2030.2,1.12881635]
[1772134407307,2.39060563,2030.8,2030.2,2.36021029]
[1772134407509,4.92567128,2031.2,2030.2,2.36021029]
[1772134407510,1.15956368,2032.3,2030.4,1.12881635]
[1772134407714,1.15956368,2032.1,2031.0,1.12881635]
[1772134408341,1.15956368,2031.9,2031.0,2.35973689]
[1772134408515,1.15956368,2031.8,2030.8,2.35980807]
[1772134408833,0.002,2030.9,2030.8,2.35980807]
[1772134410331,0.002,2030.9,2030.8,1.12881635]
[1772134410529,0.002,2030.9,2030.6,2.35992163]
[1772134414246,0.002,2031.1,2030.8,1.12881635]
[1772134414843,0.002,2031.1,2030.6,1.12881635]
[1772134416018,1.18475848,2031.1,2030.6,1.12881635]
[1772134416344,1.18475848,2031.1,2030.6,2.359979]
[1772134416519,0.002,2031.1,2030.6,2.359979]
[1772134417032,1.18475848,2031.1,2030.5,1.23117332]
[1772134418153,1.18475848,2031.1,2030.3,0.001]
[1772134418319,1.18275848,2030.9,2030.3,0.001]
[1772134419042,1.18275848,2030.7,2030.3,0.001]
[1772134421144,2.44528878,2030.6,2030.3,0.001]
[1772134421937,4.92649662,2030.7,2030.3,0.001]
[1772134421938,0.002,2030.7,2030.3,0.001]
[1772134422127,0.002,2030.7,2030.3,1.13189222]
[1772134423232,0.002,2030.9,2030.5,1.13089222]
[1772134425327,0.002,2030.9,2030.7,1.13089222]
[1772134427267,0.002,2030.9,2030.7,2.36198699]
[1772134427434,1.23073893,2031.3,2030.8,1.13089222]
[1772134428951,1.23073893,2031.3,2030.7,1.23109477]
[1772134428952,1.21412558,2031.5,2030.9,1.13089222]
[1772134429151,1.21412558,2031.6,2030.8,1.13089222]
[1772134429336,1.23061777,2031.5,2030.9,2.36187355]
[1772134429657,2.44474335,2031.5,2030.9,2.36187355]
[1772134429863,1.23060266,2031.6,2031.0,1.13089222]
[1772134430060,2.66247108,2031.8,2031.1,1.13089222]
[1772134430365,1.21412558,2031.7,2031.0,1.13089222]
[1772134431561,2.66247108,2031.8,2031.1,2.36175234]
[1772134431766,3.87659666,2031.8,2031.1,2.36175234]
[1772134432764,3.87659666,2031.8,2031.2,1.13089222]
[1772134433268,1.21412558,2031.7,2031.0,2.3617678]
[1772134433639,1.23055719,2031.6,2031.0,2.3617678]
[1772134434038,0.002,2031.5,2031.0,2.3617678]
[1772134434669,1.21612558,2031.5,2030.9,1.23195676]
[1772134435437,1.21612558,2031.5,2030.9,0.001]
[1772134435635,2.44679167,2031.5,2030.9,1.23197677]
[1772134437564,1.21412558,2031.4,2030.9,1.23197677]
[1772134437769,1.21412558,2031.4,2030.9,0.001]
[1772134439774,1.23073893,2031.3,2030.9,0.001]
[1772134439972,1.21412558,2031.4,2030.9,0.001]
[1772134440278,1.21612558,2031.5,2030.9,1.13189222]
[1772134440578,2.44674463,2031.5,2030.9,1.13189222]
[1772134441369,1.23261905,2031.5,2030.9,1.13189222]
[1772134441568,1.21412558,2031.4,2030.9,1.13189222]
[1772134442069,1.23073893,2031.3,2030.9,1.13189222]
[1772134442767,1.21412558,2031.3,2030.9,1.23197513]
[1772134442971,2.44679666,2031.5,2030.9,2.36286735]
[1772134443384,2.44679666,2031.5,2031.0,1.13089222]
[1772134443872,0.002,2031.5,2031.1,2.36175234]
[1772134446759,0.002,2031.5,2031.2,1.13089222]
[1772134447351,0.002,2031.3,2031.2,1.13089222]
[1772134448450,0.002,2031.3,2031.1,0.001]
[1772134448974,0.002,2031.3,2031.1,1.13189222]
[1772134449161,0.002,2031.3,2031.1,2.36274635]
[1772134449361,0.002,2031.3,2031.1,1.13189222]
[1772134449856,0.002,2031.3,2031.1,2.3627496]
[1772134450055,0.002,2031.3,2031.1,1.13189222]
[1772134452362,4.92402771,2031.7,2031.2,2.38745745]
[1772134452363,2.4052243,2031.7,2031.2,2.38745745]
[1772134452956,1.23251542,2031.7,2031.2,2.38745745]
[1772134453281,1.17270888,2031.6,2031.1,0.001]
[1772134454482,1.17270888,2031.6,2031.1,1.15765793]
[1772134454483,2.40331272,2031.6,2031.1,1.15765793]
[1772134454863,1.17270888,2031.5,2031.1,0.001]
[1772134456687,2.40338722,2031.4,2031.1,0.001]
[1772134456858,1.17270888,2032.3,2031.4,1.15665793]
[1772134457053,1.17270888,2032.1,2031.4,1.15665793]
[1772134457257,1.17270888,2031.9,2031.4,1.15665793]
[1772134460256,1.17270888,2031.7,2031.2,1.15665793]
[1772134460461,1.17270888,2031.7,2031.1,0.001]
[1772134461489,1.17270888,2031.7,2031.6,0.001]
[1772134461685,1.17270888,2031.7,2031.1,0.001]
[1772134461883,1.17270888,2031.7,2031.4,0.001]
[1772134462388,1.17270888,2031.5,2031.4,0.001]
[1772134464677,2.40332665,2031.5,2031.4,0.001]
[1772134466387,3.84832665,2031.5,2031.4,0.001]
[1772134467885,3.84832665,2031.5,2031.1,0.001]
[1772134467886,1.17270888,2031.4,2031.1,0.001]
[1772134469079,1.17270888,2031.3,2031.1,0.001]
[1772134469904,1.17270888,2031.3,2030.9,0.001]
[1772134470701,1.17270888,2031.2,2030.9,0.001]
[1772134470993,1.17270888,2031.0,2030.9,0.001]
[1772134471179,2.62270888,2031.0,2030.9,0.001]
[1772134472375,1.17270888,2030.9,2030.7,0.001]
[1772134474192,1.17270888,2030.7,2030.4,0.001]
[1772134474970,1.17270888,2030.7,2030.6,0.001]
[1772134476602,2.40381145,2030.7,2030.6,0.001]
[1772134477302,1.13684823,2030.6,2030.4,0.001]
[1772134477598,1.457,2030.5,2030.4,0.001]
[1772134478188,1.02445312,2030.5,2030.4,0.001]
[1772134480521,3.74858743,2031.1,2030.6,1.10909207]
[1772134480682,2.51769775,2031.1,2030.6,1.10909207]
[1772134480877,7.42936449,2031.9,2030.6,1.10909207]
[1772134480878,0.842,2031.4,2030.6,1.10909207]
[1772134481893,0.842,2031.4,2030.8,1.10137268]
[1772134482290,2.07268936,2031.4,2030.8,1.10137268]
[1772134482831,0.842,2031.4,2030.8,1.10137268]
[1772134482991,1.46,2031.5,2031.0,1.09758959]
[1772134483985,2.69062346,2031.5,2031.0,2.3284649]
[1772134484716,2.69061794,2031.5,2031.0,2.3284649]
[1772134485995,3.74831569,2031.5,2031.0,2.3284649]
[1772134486196,1.05769775,2031.4,2031.0,1.09758959]
[1772134486404,2.69061794,2031.5,2031.0,1.09758959]
[1772134487919,0.002,2031.9,2031.0,1.07926629]
[1772134488120,1.05969775,2031.9,2031.3,1.07926629]
[1772134488336,1.05969775,2031.9,2030.4,0.001]
[1772134488488,1.05769775,2031.3,2030.9,1.07926629]
[1772134491014,2.28847342,2031.3,2030.9,1.07926629]
[1772134491188,1.05769775,2031.2,2030.8,0.001]
[1772134491506,1.05769775,2031.2,2030.8,1.06979136]
[1772134493308,2.28853835,2031.2,2030.8,1.06979136]
[1772134494419,1.05769775,2031.1,2030.8,0.001]
[1772134494930,1.2308406,2031.2,2030.8,1.05634504]
[1772134495102,2.28847647,2031.3,2030.8,2.28735165]
[1772134495502,2.69269996,2031.4,2030.9,1.05534504]
[1772134495837,1.05769775,2031.3,2030.9,1.05534504]
[1772134497646,1.05769775,2031.3,2030.9,2.28632169]
[1772134498816,2.51969775,2031.4,2031.0,1.04568273]
[1772134499015,3.75037974,2031.4,2031.0,1.04568273]
[1772134499405,1.05769775,2031.3,2030.8,2.27454944]
[1772134499605,1.05769775,2031.3,2030.8,1.04353864]
[1772134499931,1.05769775,2031.1,2030.8,0.001]
[1772134500332,1.2307433,2031.3,2030.8,2.27145192]
[1772134500538,2.28844105,2031.3,2030.8,2.27145192]
[1772134500706,2.28844105,2031.3,2030.8,1.04041847]
[1772134500902,2.28844105,2031.3,2031.1,0.001]
[1772134501102,1.05769775,2031.2,2030.8,0.001]
[1772134501305,1.05769775,2030.9,2030.5,0.001]
[1772134501706,1.05769775,2030.9,2030.6,0.001]
[1772134501902,1.23104195,2030.8,2030.6,0.001]
[1772134502127,1.23104195,2030.8,2030.4,0.001]
[1772134502128,1.05769775,2030.7,2030.4,0.001]